bitfinex-derivatives/quotes_ETHF0:USTF0_20240830
["timestamp","ask_amount","ask_price","bid_price","bid_amount"]
[1725023601895,0.00594589,2525.3,2525.2,0.39594]
[1725023602303,0.40187589,2525.3,2525.2,0.39594]
[1725023603895,1.38581,2525.2,2525.1,3.2078]
[1725023604099,1.77681,2525.2,2525.1,3.2078]
[1725023604401,0.40188589,2525.3,2525.2,0.39594]
[1725023604801,0.39594,2525.2,2525.1,3.60376]
[1725023605003,0.39594,2525.2,2525.1,3.2078]
[1725023605201,0.39594,2525.2,2525.1,3.60376]
[1725023605506,0.39594,2525.2,2525.1,3.2078]
[1725023605692,0.39594,2525.2,2525.1,3.60376]
[1725023607700,0.00594589,2525.3,2525.2,0.39594]
[1725023607701,0.40188589,2525.3,2525.2,0.39594]
[1725023607903,0.40188589,2525.3,2525.2,0.78094]
[1725023609307,0.76868589,2525.3,2525.2,0.385]
[1725023609602,0.39594,2525.2,2525.1,3.2078]
[1725023610497,0.39594,2525.2,2525.0,0.7492]
[1725023611202,0.39594,2525.2,2525.1,0.39595]
[1725023612808,0.39594,2525.2,2524.9,3.2078]
[1725023612809,0.39598,2525.0,2524.9,3.2078]
[1725023613009,1.38593,2525.0,2524.9,3.2078]
[1725023613905,0.39598,2525.0,2524.9,3.2078]
[1725023614500,0.39598,2525.0,2524.9,7.1686]
[1725023614900,0.39597,2525.1,2525.0,0.39597]
[1725023615101,0.39596,2525.1,2525.0,0.363]
[1725023616600,0.39596,2525.1,2525.0,0.75898]
[1725023616803,0.39596,2525.1,2525.0,0.363]
[1725023617311,0.39596,2525.1,2525.0,0.75898]
[1725023618698,0.98987,2525.2,2525.1,0.39595]
[1725023618699,0.39596,2525.2,2525.1,0.39595]
[1725023618904,0.39596,2525.2,2525.1,0.76285]
[1725023619112,0.39596,2525.2,2525.1,0.3669]
[1725023619602,0.39596,2525.2,2525.1,0.7273]
[1725023620205,0.00594589,2525.3,2525.1,7.1678]
[1725023620400,0.00594589,2525.3,2525.2,5.78594]
[1725023620609,0.00594589,2525.3,2525.2,1.82594]
[1725023621207,0.00594589,2525.3,2525.2,5.78594]
[1725023621417,0.00594589,2525.3,2525.2,0.39594]
[1725023624808,0.40187589,2525.3,2525.2,0.39594]
[1725023625009,0.00594589,2525.3,2525.2,0.39594]
[1725023625415,0.40187589,2525.3,2525.2,0.39594]
[1725023625709,0.00594589,2525.3,2525.2,0.39594]
[1725023629419,0.00594589,2525.3,2525.2,1.82594]
[1725023629915,0.00594589,2525.3,2525.2,5.78594]
[1725023631420,0.00594589,2525.3,2525.2,6.77581]
[1725023632623,0.39585,2525.9,2525.7,0.39586]
[1725023632825,0.39585,2525.9,2525.3,0.9898]
[1725023632826,0.39585,2525.9,2525.8,0.7338]
[1725023633325,4.35505,2525.9,2525.8,0.3684]
[1725023633521,4.9488,2525.9,2525.6,1.12967]
[1725023633719,0.39585,2525.8,2525.6,1.12967]
[1725023634620,0.39587,2525.7,2525.6,1.12967]
[1725023635122,0.39586,2525.8,2525.6,1.12967]
[1725023635322,0.39586,2525.8,2525.7,0.39586]
[1725023635927,0.39586,2525.8,2525.7,0.77996]
[1725023638128,0.39585,2525.9,2525.7,0.77996]
[1725023639021,1.35450589,2526.0,2525.9,0.39583]
[1725023639022,0.00594589,2526.0,2525.9,0.39583]
[1725023639227,4.66645814,2526.5,2525.9,0.39583]
[1725023639228,0.98925,2526.8,2526.0,0.98955]
[1725023639420,0.39574,2526.6,2526.4,0.39575]
[1725023639620,0.98925,2526.8,2526.3,1.82576]
[1725023639621,0.39574,2526.5,2526.3,1.82576]
[1725023640528,0.39574,2526.5,2526.3,1.43]
[1725023640718,0.39576,2526.4,2526.2,3.2078]
[1725023640919,0.3912,2526.6,2526.2,3.2078]
[1725023641118,0.77977,2526.3,2526.2,3.2078]
[1725023641516,0.384,2526.3,2526.2,3.2078]
[1725023641719,0.39577,2526.4,2526.2,3.60359]
[1725023642127,0.50175,2526.5,2526.2,5.03359]
[1725023642327,0.50175,2526.5,2526.3,0.7311]
[1725023642328,0.106,2526.5,2526.3,0.7311]
[1725023642517,0.106,2526.5,2526.3,1.12686]
[1725023642518,0.50175,2526.5,2526.3,1.12686]
[1725023643028,0.39576,2526.4,2526.3,1.12686]
[1725023643229,0.39576,2526.4,2526.3,0.7311]
[1725023644536,0.39576,2526.4,2526.3,1.12687]
[1725023645931,0.39576,2526.4,2526.3,1.12686]
[1725023647035,0.00594589,2526.7,2526.3,6.1195]
[1725023647222,0.3541,2527.3,2526.6,5.62708]
[1725023647425,0.39564,2527.2,2527.1,0.39564]
[1725023647733,0.39561,2527.3,2527.2,1.43]
[1725023647928,0.39561,2527.3,2527.2,1.8002]
[1725023649021,0.39561,2527.3,2527.2,2.19583]
[1725023650136,0.39561,2527.3,2527.2,0.76583]
[1725023650335,0.39561,2527.3,2527.2,0.3702]
[1725023650935,0.39561,2527.3,2527.2,0.76583]
[1725023651732,0.39561,2527.3,2527.2,0.3702]
[1725023651927,0.39565,2527.1,2526.9,3.2078]
[1725023652127,0.39566,2527.1,2527.0,0.39565]
[1725023652331,0.39564,2527.2,2527.1,0.39563]
[1725023653436,0.39565,2527.1,2527.0,4.18785]
[1725023653638,0.39565,2527.1,2527.0,0.39565]
[1725023657125,0.3818,2527.2,2526.9,3.58]
[1725023657126,0.39566,2527.0,2526.9,3.97567]
[1725023658436,5.34242,2527.0,2526.9,0.3722]
[1725023658630,5.34242,2527.0,2526.5,7.527]
[1725023658631,1.38504,2526.6,2526.5,4.107]
[1725023658826,1.38504,2526.6,2526.3,3.2078]
[1725023658827,0.39576,2526.4,2526.3,3.2078]
[1725023659030,0.39576,2526.4,2526.2,0.7707]
[1725023659031,1.38521,2526.3,2526.2,0.7707]
[1725023660231,0.39577,2526.3,2526.2,0.7707]
[1725023661434,1.38521,2526.3,2526.2,0.3809]
[1725023661630,1.38521,2526.3,2526.1,0.00594589]
[1725023661631,0.39579,2526.2,2526.1,0.00594589]
[1725023662044,4.35419,2526.2,2526.1,0.00594589]
[1725023663047,0.39579,2526.2,2526.1,0.00594589]
[1725023663247,0.39578,2526.3,2526.1,0.40174589]
[1725023663447,0.39579,2526.2,2526.1,0.39794589]
[1725023665940,0.39578,2526.3,2526.1,0.79374589]
[1725023666141,41.78929,2526.7,2526.2,3.42]
[1725023666345,0.39576,2526.4,2526.3,0.3883]
[1725023667656,1.38527,2526.2,2526.1,0.00594589]
[1725023668040,5.34367,2526.2,2526.1,0.00594589]
[1725023668937,6.33315,2526.2,2526.1,0.00594589]
[1725023669449,6.33315,2526.2,2525.5,0.3791]
[1725023669450,0.39591,2525.4,2525.3,3.60372]
[1725023669643,0.39591,2525.5,2525.4,0.39591]
[1725023669952,0.39588,2525.7,2525.6,0.39587]
[1725023670550,0.39588,2525.6,2525.5,0.39589]
[1725023670944,0.39588,2525.6,2525.5,0.78659]
[1725023671739,0.39588,2525.7,2525.5,0.78659]
[1725023671945,0.39588,2525.7,2525.6,0.3728]
[1725023672652,0.39586,2525.8,2525.6,0.76868]
[1725023673351,0.40178589,2525.9,2525.7,3.81585]
[1725023673654,0.00594589,2525.9,2525.8,0.39585]
[1725023674252,0.00594589,2525.9,2525.8,4.35505]
[1725023674442,0.00594589,2525.9,2525.8,5.34468]
[1725023674846,0.00594589,2525.9,2525.8,4.35505]
[1725023675156,0.3793,2526.6,2525.9,0.98958]
[1725023675353,0.39575,2526.5,2526.3,0.39576]
[1725023675651,0.39575,2526.5,2526.4,0.3779]
[1725023676043,0.39577,2526.3,2526.2,0.39578]
[1725023676253,0.77077,2526.4,2526.2,0.39578]
[1725023676556,0.77077,2526.4,2526.3,0.39577]
[1725023676757,0.39577,2526.4,2526.3,0.39577]
[1725023677159,0.00394221,2526.5,2526.2,0.39578]
[1725023677160,0.39577,2526.3,2526.2,0.39578]
[1725023677361,0.39577,2526.4,2526.2,0.39578]
[1725023677567,0.39577,2526.4,2526.3,0.39577]
[1725023677852,0.39577,2526.4,2526.2,0.39578]
[1725023678059,0.39578,2526.3,2526.1,3.7979]
[1725023678557,0.00394221,2526.5,2526.4,0.39576]
[1725023678855,0.00394221,2526.5,2526.4,7.77416]
[1725023680447,0.39565,2527.1,2526.9,0.39567]
[1725023680654,0.39565,2527.1,2527.0,0.3569]
[1725023681158,0.39565,2527.1,2527.0,0.75256]
[1725023681463,0.39565,2527.1,2527.0,0.3569]
[1725023682050,0.39568,2526.9,2526.8,0.00594589]
[1725023682249,0.39568,2526.9,2526.8,0.39274589]
[1725023682653,0.39568,2526.9,2526.8,0.77524589]
[1725023682854,0.39568,2526.9,2526.8,0.00594589]
[1725023683652,0.39568,2526.9,2526.8,0.40163589]
[1725023685061,0.39567,2527.0,2526.9,0.39567]
[1725023685261,0.78123,2527.2,2527.1,0.39565]
[1725023685560,0.39565,2527.1,2527.0,3.81565]
[1725023688357,0.39564,2527.2,2527.1,0.39564]
[1725023688656,0.39564,2527.2,2527.1,1.15374]
[1725023694265,4.98755832,2527.3,2527.2,0.39563]
[1725023694755,8.94435832,2527.3,2527.2,0.39563]
[1725023695561,0.39563,2527.3,2527.2,0.39563]
[1725023696158,0.78121,2527.4,2527.3,0.39561]
[1725023696868,0.39561,2527.4,2527.3,0.39561]
[1725023697255,1.71363,2527.6,2527.4,0.39559]
[1725023697458,0.3956,2527.5,2527.4,0.39559]
[1725023697961,4.3524,2527.5,2527.4,0.39559]
[1725023699365,0.3956,2527.5,2527.4,0.39559]
[1725023700562,0.39561,2527.3,2527.2,3.81562]
[1725023700761,0.39563,2527.2,2527.1,1.15373]
[1725023700965,0.75793,2527.2,2527.1,1.15373]
[1725023703165,0.39563,2527.2,2527.1,4.57373]
[1725023703364,0.39562,2527.3,2527.2,0.39562]
[1725023704275,0.39563,2527.2,2527.1,4.57373]
[1725023704475,0.39563,2527.2,2527.1,4.1781]
[1725023704678,0.39563,2527.2,2527.1,4.19075]
[1725023704871,0.78273,2527.2,2527.1,4.19075]
[1725023705073,0.78273,2527.2,2527.1,3.42]
[1725023705272,0.39563,2527.3,2527.1,3.42]
[1725023705478,0.39563,2527.3,2527.2,0.39562]
[1725023709278,0.78523,2527.3,2527.0,3.5811]
[1725023709471,1.38477,2527.1,2527.0,3.2078]
[1725023709778,0.39565,2527.1,2527.0,3.60346]
[1725023710571,4.1967,2527.7,2527.0,7.1646]
[1725023710776,0.39561,2527.4,2527.3,3.8156]
[1725023710981,0.39563,2527.2,2527.1,3.7788]
[1725023711187,0.39563,2527.2,2527.1,3.42]
[1725023712073,1.38471,2527.2,2527.1,3.42]
[1725023712278,0.39565,2527.1,2527.0,3.5716]
[1725023712778,0.39565,2527.1,2527.0,3.96726]
[1725023712977,0.39565,2527.1,2527.0,3.5716]
[1725023713679,1.38477,2527.1,2527.0,3.5716]
[1725023714571,0.39565,2527.1,2527.0,3.5716]
[1725023715578,0.39566,2527.0,2526.9,3.42]
[1725023715780,1.38482,2527.0,2526.9,3.42]
[1725023716082,46.13516,2527.3,2526.9,7.3776]
[1725023716083,42.15596,2527.3,2526.9,7.3776]
[1725023716285,0.39566,2527.1,2527.0,0.39565]
[1725023716580,0.39566,2527.0,2526.9,3.81567]
[1725023717579,0.39566,2527.0,2526.9,3.42]
[1725023717988,0.39566,2527.0,2526.9,3.81568]
[1725023718177,3.2078,2527.6,2527.1,0.39562]
[1725023718178,0.39564,2527.2,2527.1,0.39562]
[1725023718376,0.39564,2527.2,2527.1,3.81562]
[1725023718582,0.39564,2527.2,2527.1,7.77242]
[1725023718784,0.39564,2527.2,2527.1,4.17962]
[1725023719186,0.39561,2527.4,2527.3,0.3956]
[1725023719882,0.39563,2527.2,2527.1,3.784]
[1725023720089,0.39563,2527.2,2527.1,4.17964]
[1725023720281,0.39563,2527.2,2527.1,5.3763705]
[1725023721589,0.39562,2527.3,2527.2,0.39561]
[1725023721788,0.39561,2527.4,2527.3,0.39561]
[1725023721987,0.39561,2527.4,2527.3,0.99408776]
[1725023723491,0.39561,2527.4,2527.3,0.99404595]
[1725023725097,0.39561,2527.4,2527.3,4.95084595]
[1725023725300,0.3956,2527.5,2527.4,0.39558]
[1725023725508,0.3956,2527.5,2527.4,0.99401595]
[1725023726697,0.3956,2527.5,2527.4,0.99402232]
[1725023727501,1.38457,2527.5,2527.4,0.99402232]
[1725023728104,1.38457,2527.5,2527.4,0.99404906]
[1725023729999,1.38457,2527.5,2527.4,2.41404906]
[1725023730200,1.38457,2527.5,2527.4,2.41406433]
[1725023730201,0.3956,2527.5,2527.4,2.41406433]
[1725023730903,0.3956,2527.5,2527.4,2.77336433]
[1725023733808,0.3956,2527.5,2527.4,2.17488]
[1725023734006,0.3956,2527.5,2527.4,2.7728613]
[1725023734317,0.39556,2527.7,2527.6,0.39555]
[1725023734508,0.39556,2527.7,2527.6,2.4135313]
[1725023735212,0.39555,2527.8,2527.7,0.39554]
[1725023735513,0.39551,2528.0,2527.9,0.39551]
[1725023735810,0.39551,2528.0,2527.9,2.4134913]
[1725023736209,3.2078,2528.1,2527.9,2.4134913]
[1725023736523,3.60329,2528.1,2528.0,0.5979813]
[1725023736812,3.60329,2528.1,2528.0,0.9934913]
[1725023737010,3.60329,2528.1,2528.0,0.99262531]
[1725023738311,3.2078,2528.1,2528.0,0.59711531]
[1725023738505,3.60329,2528.1,2528.0,0.59711531]
[1725023738702,3.60329,2528.1,2528.0,0.99262531]
[1725023740211,3.60329,2528.1,2528.0,0.39551]
[1725023740412,3.60329,2528.1,2528.0,0.99236916]
[1725023741115,3.60329,2528.1,2528.0,0.39551]
[1725023741308,3.2078,2528.1,2528.0,0.39551]
[1725023741509,3.2078,2528.1,2528.0,0.99246257]
[1725023741711,3.2078,2528.1,2528.0,0.39551]
[1725023742008,4.95147,2528.3,2528.0,0.59715401]
[1725023742203,4.95147,2528.3,2528.1,1.42]
[1725023742404,4.95147,2528.3,2528.2,0.3835]
[1725023742913,4.556,2528.3,2528.2,0.77897]
[1725023743120,3.60322,2528.6,2528.5,0.39543]
[1725023743311,3.60322,2528.6,2528.5,1.81543]
[1725023743514,3.60322,2528.6,2528.5,1.42]
[1725023745619,3.60322,2528.6,2528.5,5.3752]
[1725023746318,3.60322,2528.6,2528.5,1.42]
[1725023746517,4.59176,2528.6,2528.5,1.42]
[1725023747103,3.60322,2528.6,2528.5,1.42]
[1725023748014,3.2078,2528.6,2528.5,3.42]
[1725023748217,4.59175,2528.6,2528.5,3.42]
[1725023748413,4.97045,2528.6,2528.5,3.42]
[1725023748623,3.98191,2528.6,2528.5,3.42]
[1725023749811,3.60321,2528.6,2528.5,3.42]
[1725023750613,3.60321,2528.6,2528.5,3.81543]
[1725023750809,3.60321,2528.6,2528.5,7.3752]
[1725023751914,4.59175,2528.6,2528.5,3.42]
[1725023752826,1.38395,2528.6,2528.5,3.42]
[1725023753215,1.38395,2528.6,2528.5,3.81543]
[1725023753725,1.38395,2528.6,2528.5,3.42]
[1725023753932,1.38395,2528.6,2528.5,3.81543]
[1725023754115,1.38395,2528.6,2528.5,3.42]
[1725023755023,0.39544,2528.4,2528.3,3.78403401]
[1725023755218,1.38405,2528.4,2528.3,0.00593401]
[1725023756227,6.32786,2528.4,2528.3,0.00593401]
[1725023756431,5.33925,2528.4,2528.3,0.00593401]
[1725023757129,6.32786,2528.4,2528.3,0.00593401]
[1725023757323,6.32786,2528.4,2528.3,4.01e-06]
[1725023758124,12.32786,2528.4,2528.3,4.01e-06]
[1725023758329,16.55950098,2528.4,2528.3,4.01e-06]
[1725023758623,19.97950098,2528.4,2528.3,4.01e-06]
[1725023759127,60.77950098,2528.4,2528.3,4.01e-06]
[1725023760919,57.35950098,2528.4,2528.3,4.01e-06]
[1725023761626,60.77950098,2528.4,2528.3,4.01e-06]
[1725023762816,62.75673098,2528.4,2528.3,4.01e-06]
[1725023763529,57.35950098,2528.4,2528.3,4.01e-06]
[1725023763723,55.84350098,2528.4,2528.3,4.01e-06]
[1725023763929,61.84350098,2528.4,2528.3,4.01e-06]
[1725023764730,60.85489098,2528.4,2528.3,4.01e-06]
[1725023764928,54.85489098,2528.4,2528.3,4.01e-06]
[1725023767037,55.84350098,2528.4,2528.3,4.01e-06]
[1725023767329,61.84350098,2528.4,2528.3,4.01e-06]
[1725023771441,63.82073098,2528.4,2528.3,4.01e-06]
[1725023771637,67.24073098,2528.4,2528.3,4.01e-06]
[1725023772231,2.37333,2527.7,2527.6,0.731]
[1725023773432,2.37333,2527.7,2527.6,0.3614]
[1725023773933,1.38444,2527.7,2527.6,0.7488]
[1725023775741,1.38444,2527.7,2527.6,4.7048]
[1725023776043,1.38444,2527.7,2527.6,0.7488]
[1725023776231,2.37333,2527.7,2527.6,0.7488]
[1725023778638,17.78962795,2527.7,2527.4,0.00593401]
[1725023778834,17.78962795,2527.7,2527.4,4.01e-06]
[1725023778835,9.99029,2527.5,2527.4,4.01e-06]
[1725023779036,6.57029,2527.5,2527.4,4.01e-06]
[1725023779230,15.0357995,2527.5,2527.4,4.01e-06]
[1725023779743,21.0357995,2527.5,2527.4,4.01e-06]
[1725023780231,0.98916,2527.0,2526.7,0.3787]
[1725023780433,4.59273,2526.8,2526.7,0.3787]
[1725023781048,5.58197,2526.8,2526.7,0.3787]
[1725023782041,2.37436,2526.6,2526.5,4.01e-06]
[1725023782342,2.37436,2526.6,2525.5,4.107]
[1725023782343,1.38548,2525.8,2525.7,0.3549]
[1725023782549,1.38548,2525.8,2525.7,0.3756]
[1725023783242,1.38548,2525.8,2525.1,3.2078]
[1725023783243,0.98967,2525.7,2525.1,3.2078]
[1725023783445,0.98967,2525.7,2525.3,0.7549]
[1725023783446,0.39591,2525.4,2525.3,0.7549]
[1725023785346,0.39589,2525.6,2525.3,14.53082]
[1725023785540,3.21373401,2525.7,2525.5,3.81589]
[1725023785736,3.60960401,2525.7,2525.5,3.42]
[1725023786748,0.39588,2525.6,2525.5,3.42]
[1725023787142,0.39588,2525.6,2525.5,7.3792]
[1725023787541,0.39591,2525.5,2525.3,0.7549]
[1725023788147,0.39591,2525.5,2525.3,4.7149]
[1725023788360,0.39591,2525.4,2525.3,0.7549]
[1725023788648,0.39591,2525.4,2525.3,4.7149]
[1725023789242,0.3959,2525.5,2525.3,5.11083]
[1725023789437,0.3959,2525.5,2525.3,1.15083]
[1725023789644,0.39591,2525.4,2525.3,0.7549]
[1725023790043,1.3857,2525.4,2525.3,0.7549]
[1725023790253,13.84311779,2525.4,2525.3,0.3756]
[1725023790444,13.84311779,2525.4,2525.1,0.00593401]
[1725023790445,1.38581,2525.2,2525.1,0.00593401]
[1725023793554,0.39594,2525.2,2525.1,3.96593401]
[1725023794051,0.39594,2525.2,2525.1,4.36189401]
[1725023794250,0.39594,2525.2,2525.1,3.96593401]
[1725023794553,0.39594,2525.2,2525.1,0.00593401]
[1725023794755,1.38581,2525.2,2525.1,0.00593401]
[1725023796251,0.39594,2525.2,2525.1,0.00593401]
[1725023796455,0.98977,2525.5,2525.1,0.40188401]
[1725023796761,0.39594,2525.2,2525.1,0.40188401]
[1725023797050,0.39594,2525.2,2525.1,0.00593401]
[1725023797444,0.39594,2525.3,2525.1,4.36189401]
[1725023797649,0.39594,2525.3,2525.1,0.40189401]
[1725023798059,0.39594,2525.3,2525.2,0.39594]
[1725023798554,4.87991,2525.5,2525.2,3.96]
[1725023798854,0.39591,2525.4,2525.3,0.39592]
[1725023799048,4.8799,2525.5,2525.4,0.39591]
[1725023799244,4.8799,2525.5,2525.1,3.42593401]
[1725023799245,4.484,2525.5,2525.1,3.42593401]
[1725023799451,0.39592,2525.4,2525.3,0.39592]
[1725023799848,0.39592,2525.4,2525.3,4.35592]
[1725023800055,0.39592,2525.4,2525.3,3.96]
[1725023800252,0.39592,2525.4,2525.3,4.35593]
[1725023801259,0.39592,2525.4,2525.3,3.96]
[1725023801553,0.39592,2525.4,2525.3,4.35593]
[1725023802850,0.39591,2525.5,2525.4,0.3959]
[1725023803050,0.39591,2525.5,2525.4,1.1167]
[1725023803555,4.88581401,2525.7,2525.6,0.39588]
[1725023803756,0.39588,2525.6,2525.5,0.78029]
[1725023803956,1.38565,2525.5,2525.4,0.7208]
[1725023804143,2.3754,2525.5,2525.4,0.358]
[1725023804345,0.39594,2525.2,2525.1,0.36873401]
[1725023804551,0.39594,2525.2,2525.1,0.00593401]
[1725023804552,1.38581,2525.2,2525.1,0.00593401]
[1725023804748,5.73310964,2525.2,2525.1,0.00593401]
[1725023804952,5.34581,2525.2,2525.1,0.00593401]
[1725023805256,9.89993313,2525.2,2525.1,0.00593401]
[1725023807058,14.09760313,2525.2,2525.1,0.00593401]
[1725023807356,13.10773313,2525.2,2525.1,0.00593401]
[1725023808265,13.47123313,2525.2,2525.1,0.00593401]
[1725023809063,17.88110313,2525.2,2525.1,0.00593401]
[1725023810759,16.89123313,2525.2,2525.1,0.00593401]
[1725023811969,9.14773313,2525.2,2525.1,0.00593401]
[1725023812263,4.59361,2525.2,2525.1,0.00593401]
[1725023812666,1.38581,2525.2,2525.1,0.00593401]
[1725023812968,0.39593,2525.3,2525.1,0.00593401]
[1725023813266,0.39592,2525.4,2525.2,0.39593]
[1725023813463,0.39592,2525.4,2525.3,0.7593]
[1725023813656,3.60371,2525.5,2525.3,0.7593]
[1725023813855,0.39591,2525.4,2525.3,0.7593]
[1725023814460,0.39594,2525.2,2525.1,0.00593401]
[1725023814859,0.39594,2525.2,2525.1,3.96593401]
[1725023815053,0.39594,2525.2,2525.1,0.00593401]
[1725023815752,1.38581,2525.2,2525.1,0.00593401]
[1725023815961,1.74781,2525.2,2525.1,0.00593401]
[1725023816154,2.13571,2525.2,2525.1,0.00593401]
[1725023816760,10.50558,2525.2,2525.1,0.00593401]
[1725023817060,4.66414248,2525.2,2525.1,0.00593401]
[1725023817255,3.2078,2525.5,2525.1,3.96593401]
[1725023817467,0.39594,2525.2,2525.1,0.00593401]
[1725023817663,0.39594,2525.2,2525.1,4.74329401]
[1725023817868,0.39594,2525.2,2525.1,4.34733401]
[1725023818271,0.39594,2525.3,2525.2,0.39594]
[1725023818470,0.39592,2525.4,2525.1,0.38733401]
[1725023818768,0.39592,2525.4,2525.2,0.39594]
[1725023819162,0.39591,2525.4,2525.3,0.39592]
[1725023819464,0.39594,2525.3,2525.2,0.39593]
[1725023819859,0.39594,2525.3,2525.2,4.35593]
[1725023821868,0.39594,2525.2,2525.1,0.78328401]
[1725023822464,0.39594,2525.2,2525.1,0.38733401]
[1725023822665,0.39594,2525.2,2525.1,0.78329401]
[1725023822969,0.39594,2525.3,2525.2,0.39593]
[1725023823968,0.39594,2525.2,2525.1,0.78328401]
[1725023824668,0.39594,2525.3,2525.2,0.39593]
[1725023825060,0.39594,2525.3,2525.2,4.35593]
[1725023825677,3.2078,2525.5,2525.4,0.39591]
[1725023825974,3.6037,2525.5,2525.4,0.39591]
[1725023826272,3.6037,2525.5,2525.4,0.60099833]
[1725023826460,3.6037,2525.5,2525.4,0.99690833]
[1725023827062,4.59345,2525.5,2525.4,0.60099833]
[1725023827464,0.39593,2525.3,2525.2,0.39593]
[1725023827666,3.2078,2525.5,2525.2,4.56100119]
[1725023827860,0.00593401,2525.7,2525.6,0.39588]
[1725023828063,0.40180401,2525.7,2525.6,0.39588]
[1725023828274,0.00593401,2525.7,2525.6,4.73918]
[1725023828962,0.00593401,2525.7,2525.6,5.34015366]
[1725023830166,0.40180401,2525.7,2525.6,5.34015366]
[1725023830370,0.00593401,2525.7,2525.6,5.34015366]
[1725023830963,0.00593401,2525.7,2525.6,13.31957366]
[1725023831167,0.39579,2526.2,2526.1,0.39579]
[1725023831567,3.60358,2526.3,2526.2,0.39579]
[1725023832161,0.39579,2526.2,2526.1,0.39579]
[1725023832364,0.39579,2526.2,2526.1,0.99667985]
[1725023834374,0.39579,2526.2,2526.1,1.35887985]
[1725023834975,0.39579,2526.2,2526.1,0.75799]
[1725023835363,3.60358,2526.3,2526.2,0.39579]
[1725023836280,0.39579,2526.2,2526.1,0.75799]
[1725023836470,0.39579,2526.2,2526.1,0.758]
[1725023836670,0.39579,2526.2,2526.1,4.7164]
[1725023840679,3.60358,2526.3,2526.2,0.39579]
[1725023841776,3.2078,2526.3,2526.2,1.38527]
[1725023841976,0.39576,2526.4,2526.3,0.39577]
[1725023842483,0.00593401,2526.5,2526.4,0.39576]
[1725023842687,0.00593401,2526.5,2526.4,5.34356]
[1725023842890,0.00593401,2526.5,2526.4,11.34356]
[1725023843186,0.40167401,2526.5,2526.4,3.9584]
[1725023843390,0.99529401,2526.5,2526.3,0.3539]
[1725023843586,1.38521,2526.3,2526.2,3.2078]
[1725023844277,0.39577,2526.3,2526.2,3.2078]
[1725023844475,0.39577,2526.3,2526.2,7.56199]
[1725023844874,0.39577,2526.3,2526.2,3.60359]
[1725023846077,1.38521,2526.3,2526.2,3.2078]
[1725023846381,1.75271,2526.3,2526.2,3.2078]
[1725023846885,0.39579,2526.2,2526.1,0.3622]
[1725023847077,1.38527,2526.2,2526.1,0.3622]
[1725023847481,0.39579,2526.2,2526.1,0.3622]
[1725023847985,1.38527,2526.2,2526.1,0.3622]
[1725023848188,1.38527,2526.2,2525.8,7.3148]
[1725023848189,4.94788,2526.2,2525.8,7.3148]
[1725023848405,1.37593,2526.1,2525.8,7.3148]
[1725023848682,0.39583,2525.9,2525.8,4.107]
[1725023848886,0.98956,2526.0,2525.4,3.2078]
[1725023848887,0.3959,2525.5,2525.4,3.2078]
[1725023849079,0.39593,2525.3,2525.2,0.3897]
[1725023849279,0.39594,2525.2,2525.1,0.00593401]
[1725023849485,0.75914,2525.2,2525.1,0.00593401]
[1725023853289,0.75914,2525.2,2525.1,0.40189401]
[1725023853591,0.39594,2525.3,2525.2,0.39594]
[1725023854484,0.39594,2525.2,2525.1,0.40188401]
[1725023854875,0.39594,2525.2,2525.1,4.36188401]
[1725023855075,0.39594,2525.3,2525.2,0.39594]
[1725023855490,0.39594,2525.3,2525.2,0.75954]
[1725023856684,0.39594,2525.2,2525.1,0.40188401]
[1725023858185,0.39594,2525.3,2525.2,0.39593]
[1725023858784,0.39591,2525.5,2525.4,0.39591]
[1725023858995,0.39588,2525.7,2525.6,0.39587]
[1725023859491,0.3795,2525.9,2525.6,0.39587]
[1725023859682,4.94749,2526.2,2525.5,7.61754]
[1725023859887,0.39583,2526.0,2525.9,0.39583]
[1725023860696,4.3375,2526.2,2525.7,1.72636]
[1725023860999,4.3375,2526.2,2526.1,0.3958]
[1725023861000,3.958,2526.2,2526.1,0.3958]
[1725023861788,3.958,2526.2,2526.1,0.7688]
[1725023862491,4.87968401,2526.5,2526.3,0.39576]
[1725023864996,4.87968401,2526.5,2526.1,0.373]
[1725023865383,4.48393401,2526.5,2526.1,0.373]
[1725023865590,0.39577,2526.3,2526.2,0.39578]
[1725023866995,0.3749,2526.4,2526.3,0.39577]
[1725023866996,0.77067,2526.4,2526.3,0.39577]
[1725023867190,0.39577,2526.3,2526.2,0.39578]
[1725023867392,0.77067,2526.4,2526.3,0.39577]
[1725023867799,0.3749,2526.4,2526.1,0.373]
[1725023868002,0.39578,2526.3,2526.2,0.39578]
[1725023872304,5.47330401,2526.5,2526.4,0.39576]
[1725023872305,4.87968401,2526.5,2526.4,0.39576]
[1725023872808,0.40168401,2526.5,2526.4,0.39576]
[1725023873003,0.00593401,2526.5,2526.4,0.39576]
[1725023873613,0.00593401,2526.5,2526.4,4.95429964]
[1725023873812,0.00593401,2526.5,2526.4,4.35416]
[1725023874113,0.00593401,2526.5,2526.4,4.95434326]
[1725023874303,0.00593401,2526.5,2526.4,4.95436175]
[1725023874503,0.00593401,2526.5,2526.4,4.95440612]
[1725023874709,0.00593401,2526.5,2526.4,4.35416]
[1725023875109,0.40167401,2526.5,2526.4,4.35416]
[1725023876003,0.00593401,2526.5,2526.4,4.35416]
[1725023876208,0.00593401,2526.5,2526.4,10.35350545]
[1725023877598,0.00593401,2526.5,2526.4,12.96076]
[1725023877805,0.00593401,2526.5,2526.4,13.5612841]
[1725023878005,0.00593401,2526.5,2526.4,19.5612841]
[1725023878206,0.39568,2526.9,2526.8,0.39569]
[1725023878403,0.39567,2527.0,2526.9,0.39568]
[1725023878607,40.8,2527.2,2527.0,0.39565]
[1725023878814,0.39563,2527.2,2527.1,1.12234]
[1725023879203,3.5824,2527.3,2527.1,0.7267]